Cogmind - Beta 13 @@@ ROGUE MODE // 2024.03.15 @ 15:37:53 Player: opdo Result: Self-destructed Performance ------------- Evolutions (3) 1500 Regions Visited (6) 1200 Robots Destroyed (39) 195 Value Destroyed (1356) 1356 Prototype IDs (27) 540 Alien Tech Used (0) 0 Bonus (300) 300 TOTAL SCORE: 5091 Bonus ------- Aligned with FarCom 300 Cogmind --------- Core Integrity 295/700 Matter 243/300 Energy 100/100 System Corruption 3% Temperature Warm (119) Movement Core (50) Location -7/Factory Parts ------- > --- POWER (2) -------- (None) > --- PROPULSION (3) --- (None) > --- UTILITY (4) ------ Improved Terrain Scan Processor Transmission Jammer > --- WEAPON (4) ------- (None) > --- INVENTORY (5) ---- Airjet Gravmag System Core Analyzer Hacking Suite Peak State ------------ > --- POWER ------------ Ion Engine > --- PROPULSION ------- Improved Aluminum Leg Titanium Leg > --- UTILITY ---------- Small Storage Unit Improved Sensor Array Experimental Sensor Array > --- WEAPON ----------- XL Autogun Array > --- INVENTORY -------- Reinforced Deuterium Engine Fission Core Flight Unit Flight Unit Flight Unit Light Assault Rifle [Rating: 56] Favorites ----------- Power Ion Engine Engine Ion Engine Power Core Micro Nuclear Core Propulsion Flight Unit Treads Light Treads Leg Aluminum Leg Hover Unit Gravmag System Flight Unit Flight Unit Utility Small Storage Unit Device Experimental Sensor Array Storage Small Storage Unit Processor Advanced Targeting Computer Weapon Light Assault Rifle Energy Gun Improved Spread Laser Energy Cannon Guided Plasma Cannon Ballistic Gun Light Assault Rifle Impact Weapon Heavy Hammer Slashing Weapon Great Axe Build | -11 -10 -10 -10 -9 -8 -7 ------- Run | Yrd Mat Min Exi Min Mat Fac Slots Evolved 6 | . . . . . 4 2 Power 1 | . . . . . 1 . Propulsion 1 | . . . . . . 1 Utility 2 | . . . . . 1 1 Weapon 2 | . . . . . 2 . Parts Attached 65 | 6 . 4 3 . 18 34 Power 9 | 1 . 1 . . 2 5 Engine 6 | 1 . 1 . . 2 2 Core 3 | . . . . . . 3 Reactor . | . . . . . . . Propulsion 20 | 2 . 2 . . 5 11 Treads 3 | . . . . . 3 . Leg 6 | 2 . . . . 2 2 Wheel . | . . . . . . . Hover 9 | . . . . . . 9 Flight 2 | . . 2 . . . . Utility 14 | 1 . 1 2 . 4 6 Device 8 | . . 1 1 . 2 4 Storage 1 | 1 . . . . . . Processor 5 | . . . 1 . 2 2 Hackware . | . . . . . . . Protection . | . . . . . . . Artifact . | . . . . . . . Weapon 22 | 2 . . 1 . 7 12 Energy Gun 7 | . . . . . . 7 Energy Cannon 1 | . . . 1 . . . Ballistic Gun 11 | 2 . . . . 6 3 Ballistic Cannon . | . . . . . . . Launcher . | . . . . . . . Special Weapon . | . . . . . . . Impact Weapon 2 | . . . . . 1 1 Slashing Weapon 1 | . . . . . . 1 Piercing Weapon . | . . . . . . . Special Melee Weapon . | . . . . . . . Unidentified Prototypes 5 | . . 1 1 . 1 2 Parts Lost 25 | . . 1 . . 8 16 Power 5 | . . 1 . . 2 2 Propulsion 7 | . . . . . 2 5 Utility 4 | . . . . . 2 2 Weapon 9 | . . . . . 2 7 Highest Loss Streak 9 | . . 1 . . 4 9 To Critical Strikes . | . . . . . . . Average Slot Usage (%) 88 | . 85 95 98 100 59 94 Engine 10 | . 14 13 14 14 9 6 Core 2 | . . . . . . 7 Treads 2 | . . . . . 3 5 Leg 6 | . 28 24 . . 10 . Hover 4 | . . . . . . 13 Flight 9 | . . 3 28 28 2 . Device 10 | . . 10 12 14 10 8 Storage 9 | . 14 14 14 14 9 4 Processor 5 | . . . . . 3 15 Energy Gun 2 | . . . . . . 8 Energy Cannon 3 | . . . 9 14 . . Ballistic Gun 16 | . 28 28 18 14 9 14 Slashing Weapon 1 | . . . . . . 3 Naked Turns . | . . . . . . . Heaviest Build 35 | 10 10 13 22 22 35 31 Greatest Support 40 | 20 20 20 8 8 40 40 Greatest Overweight (x) 3 | 2 . 1 2 2 3 2 Average Overweight (x) . | . . . 1 2 . . Largest Inventory Capacity 8 | 8 8 8 8 8 8 8 Average Capacity 7 | 7 8 8 8 8 8 6 Most Carried 8 | 3 . 8 8 8 8 8 Average Carried 5 | . . 4 7 8 6 4 Final Capacity 8 | 8 8 8 8 8 8 5 Final Carried 8 | . . 7 8 8 6 4 Class Distribution -------------------- 42% | Mutant 25% | Gunner 23% | Skirmisher 4% | Scavenger-Skirmisher Dominant Class ---------------- Mutant | -10/Materials Mutant | -10/Mines Mutant | -10/Exiles Skirmisher | -9/Mines Skirmisher | -8/Materials Gunner | -7/Factory Resources | -11 -10 -10 -10 -9 -8 -7 ----------- Run | Yrd Mat Min Exi Min Mat Fac Matter Collected 1363 | 172 . 129 . . 555 507 Remotely . | . . . . . . . Salvage Created 1466 | . . 138 . . 648 680 Parts 99 | . . 14 . . 45 40 Haulers Intercepted 1 | . . . . . 1 . Recyclers Shooed 1 | . . 1 . . . . Parts Field Recycled . | . . . . . . . Retrieved Matter . | . . . . . . . Parts Self-Destructed . | . . . . . . . Prevented . | . . . . . . . Kills | -11 -10 -10 -10 -9 -8 -7 ------- Run | Yrd Mat Min Exi Min Mat Fac Combat Hostiles Destroyed 31 | . . 5 . . 15 11 Melee 3 | . . . . . 1 2 Guns 28 | . . 5 . . 14 9 Classes Destroyed 11 | . . 2 . . 7 2 Worker 2 | . . . . . 1 1 Builder 1 | . . . . . 1 . Hauler 1 | . . . . . 1 . Watcher 4 | . . . . . 1 3 Swarmer 9 | . . 3 . . 6 . Grunt 6 | . . 2 . . 2 2 Sentry 7 | . . . . . 5 2 Specialist 2 | . . . . . 1 1 Hunter 2 | . . . . . . 2 Programmer 4 | . . . . . . 4 Heavy 1 | . . . . . 1 . Best Kill Streak 9 | . . 3 . . 9 5 Combat Bots Only 5 | . . 3 . . 5 4 Max Kills in Single Turn 2 | . . 1 . . 2 2 Gunslinging . | . . . . . . . Exploded . | . . . . . . . Melee 1 | . . . . . 1 1 Uniques/NPCs Destroyed . | . . . . . . . Combat | -11 -10 -10 -10 -9 -8 -7 -------- Run | Yrd Mat Min Exi Min Mat Fac Hostile Shots Fired 310 | . . 32 . . 106 172 Missed 82 | . . 7 . . 25 50 Damage Taken 3457 | . . 259 . . 1478 1720 Core 709 | . . 50 . . 254 405 Absorbed by Shields . | . . . . . . . Regen/Repaired (Parts) 32 | . . . . . . 32 Core Remaining (%) 77 | 100 . . . 80 53 . Volleys Fired 82 | . . 13 . . 32 37 Largest 4 | . . 2 . . 4 4 Hottest 198 | . . 40 . . 80 198 Shots Fired 171 | . . 26 1 . 38 106 Gun 171 | . . 26 1 . 38 106 Cannon . | . . . . . . . Launcher . | . . . . . . . Special . | . . . . . . . Kinetic 129 | . . 26 1 . 38 64 Thermal 28 | . . . . . . 28 Explosive . | . . . . . . . Electromagnetic 14 | . . . . . . 14 Robot Hit Streak 16 | . . 5 . . 16 11 Robot Miss Streak 6 | . . 3 . . 6 5 Penetration Max . | . . . . . . . Secondary Targets 4 | . . 3 . . . 1 Max Gunslinging Chain 1 | . . 1 . . . 1 Shots Hit Robots 129 | . . 14 . . 36 79 Core Hits 78 | . . 13 . . 24 41 Critical Kills 1 | . . 1 . . . . Critical Parts Destroyed 1 | . . . . . . 1 Critical Strikes 4 | . . 1 . . . 3 Burn 1 | . . . . . . 1 Destroy 2 | . . 1 . . . 1 Sever 1 | . . . . . . 1 Melee Attacks 10 | . . . . . 4 6 Impact 4 | . . . . . 4 . Slashing 6 | . . . . . . 6 Piercing . | . . . . . . . Sneak Attacks . | . . . . . . . Combat Hostiles . | . . . . . . . Follow-up Attacks . | . . . . . . . Damage Inflicted 3490 | . . 132 . . 1830 1528 Guns 3105 | . . 128 . . 1647 1330 Cannons . | . . . . . . . Explosions . | . . . . . . . Melee 366 | . . . . . 172 194 Ramming 19 | . . 4 . . 11 4 Kinetic 2502 | . . 128 . . 1647 727 Thermal 474 | . . . . . . 474 Explosive . | . . . . . . . Electromagnetic 129 | . . . . . . 129 Impact 172 | . . . . . 172 . Slashing 194 | . . . . . . 194 Piercing . | . . . . . . . Highest Corruption 3 | . . 2 2 2 . 3 Average Corruption 1 | . . 2 2 2 . 1 Corruption Purged . | . . . . . . . Corruption Blocked . | . . . . . . . Effects 18 | . . 4 7 3 . 4 Message Errors 6 | . . 1 2 3 . . Matter Fused 1 | . . 1 . . . . Heat Flow Errors 2 | . . . 2 . . . Energy Discharges 5 | . . 2 1 . . 2 Data Loss (minor) 2 | . . . 1 . . 1 Misfires 1 | . . . 1 . . . Alerts 1 | . . . . . . 1 Overload Shots . | . . . . . . . Overflow Damage 72 | . . . . . 72 . Projectiles . | . . . . . . . Explosions . | . . . . . . . Melee 72 | . . . . . 72 . Knockbacks . | . . . . . . . Impact . | . . . . . . . Kinetic . | . . . . . . . Secondary . | . . . . . . . Self-Inflicted Damage 6 | . . 4 . . . 2 Shots . | . . . . . . . Rammed 3 | . . . . . 1 2 Targets Rammed 7 | . . . . . 5 2 Kicked 4 | . . . . . 4 . Crushed . | . . . . . . . Highest Temperature 525 | . . 15 228 . 170 525 Average Temperature 141 | . . 5 111 . 59 178 Received Heat Transfer 480 | . . 63 . . 243 174 Effects 13 | . . . . . . 13 Shutdowns 5 | . . . . . . 5 Energy Bleed 4 | . . . . . . 4 Matter Decay 1 | . . . . . . 1 Short Circuit 1 | . . . . . . 1 Damage (minor) 2 | . . . . . . 2 Siege Activations . | . . . . . . . Robots Corrupted . | . . . . . . . Combat Hostiles . | . . . . . . . Parts Fried 3 | . . . . . 2 1 Impact Corruptions 3 | . . . . . 3 . Robots Melted . | . . . . . . . Combat Hostiles . | . . . . . . . Parts Melted 2 | . . . . . . 2 Heat Transferred 664 | . . . . . . 664 Parts Sabotaged . | . . . . . . . Parts Stolen . | . . . . . . . Parts Stripped . | . . . . . . . Power Chain Reactions . | . . . . . . . Alert | -11 -10 -10 -10 -9 -8 -7 ------- Run | Yrd Mat Min Exi Min Mat Fac Peak Influence 278 | . . 125 . . 278 173 Initial 121 | . . . . . . 121 Average 74 | . . 67 . . 140 64 Maximum Alert Level 1 | . . . . . 1 . Low Security (%) 87 | 100 100 100 . 100 50 100 Level 1 12 | . . . . . 50 . Level 2 . | . . . . . . . Level 3 . | . . . . . . . Level 4 . | . . . . . . . Level 5 . | . . . . . . . High Security . | . . . . . . . Max Security . | . . . . . . . Squads Dispatched 9 | . . . . . 4 5 Investigation . | . . . . . . . Extermination 3 | . . . . . . 3 Reinforcement 4 | . . . . . 2 2 Assault . | . . . . . . . Garrison 2 | . . . . . 2 . Intercept . | . . . . . . . Searches Triggered . | . . . . . . . Construction Impeded . | . . . . . . . Haulers Reinforced . | . . . . . . . Active Scanning Responses . | . . . . . . . Cargo Convoy Interrupts 1 | . . . . . . 1 Stealth | -11 -10 -10 -10 -9 -8 -7 --------- Run | Yrd Mat Min Exi Min Mat Fac Distress Signals 4 | . . . . . 3 1 Communications Jammed . | . . . . . . . Distress Signals . | . . . . . . . Times Spotted 56 | . . 5 . . 26 25 Peak Tracking Total 6 | . . 3 . . 6 6 Tactical Retreats 2 | . . . . . 2 . Traps | -11 -10 -10 -10 -9 -8 -7 ------- Run | Yrd Mat Min Exi Min Mat Fac Traps Triggered 2 | . . . . . . 2 Indirectly . | . . . . . . . Trap Hack Attempts . | . . . . . . . Triggered . | . . . . . . . Disarmed . | . . . . . . . Reprogrammed . | . . . . . . . Reused . | . . . . . . . Traps Extracted . | . . . . . . . Installed . | . . . . . . . Triggered 2 | . . . . . . 2 Most Traps Carried 5 | . . 5 5 . . . Machines | -11 -10 -10 -10 -9 -8 -7 ---------- Run | Yrd Mat Min Exi Min Mat Fac Machines Disabled 2 | . . . . . 2 . Max in Single Turn 1 | . . . . . 1 . Machines Repaired . | . . . . . . . Machines Dismantled . | . . . . . . . Machines Sabotaged . | . . . . . . . Overloaded Fab Kills . | . . . . . . . Hacking | -11 -10 -10 -10 -9 -8 -7 --------- Run | Yrd Mat Min Exi Min Mat Fac Machines Accessed 9 | . 1 . 1 . 3 4 Terminals 6 | . 1 . . . 2 3 Fabricators . | . . . . . . . Repair Stations 1 | . . . . . . 1 Recycling Units 1 | . . . . . 1 . Scanalyzers . | . . . . . . . Garrison Access . | . . . . . . . Total Hacks 15 | . 2 . 1 . 5 7 Successful 6 | . 1 . 1 . 2 2 Failed 9 | . 1 . . . 3 5 Catastrophic 1 | . . . . . 1 . Database Lockouts . | . . . . . . . Manual 3 | . . . 3 . . . Terminals 10 | . 2 . . . 3 5 Fabricators . | . . . . . . . Repair Stations 2 | . . . . . . 2 Recycling Units 2 | . . . . . 2 . Scanalyzers . | . . . . . . . Garrison Access . | . . . . . . . Terminal Hacks 3 | . 1 . 1 . 1 . Robot Analysis 1 | . 1 . . . . . Zone Layout 1 | . . . . . 1 . Derelict Proto ID Bank 1 | . . . 1 . . . Fabricator Hacks . | . . . . . . . Repair Station Hacks 2 | . . . . . . 2 Scan Component 1 | . . . . . . 1 Repair 1 | . . . . . . 1 Recycling Unit Hacks 1 | . . . . . 1 . Retrieve Components 1 | . . . . . 1 . Scanalyzer . | . . . . . . . Garrison Access Hacks . | . . . . . . . Unauthorized Hacks . | . . . . . . . Terminals . | . . . . . . . Fabricators . | . . . . . . . Repair Stations . | . . . . . . . Recycling Units . | . . . . . . . Scanalyzers . | . . . . . . . Garrison Access . | . . . . . . . Data Cores Recovered . | . . . . . . . Used . | . . . . . . . Hacking Detections 4 | . . . . . 2 2 Full Trace Events . | . . . . . . . Feedback Events . | . . . . . . . Feedback Blocked . | . . . . . . . Robot Schematics Acquired . | . . . . . . . Robots Built . | . . . . . . . Authchips . | . . . . . . . Time . | . . . . . . . Total Robot Build Rating . | . . . . . . . Part Schematics Acquired . | . . . . . . . Parts Built . | . . . . . . . Authchips . | . . . . . . . Time . | . . . . . . . Total Part Build Rating . | . . . . . . . Parts Repaired 1 | . . . . . . 1 Time 38 | . . . . . . 38 Parts Recycled . | . . . . . . . Recycled Matter . | . . . . . . . Retrieved Matter . | . . . . . . . Retrieved Components 2 | . . . . . 2 . Parts Scanalyzed . | . . . . . . . Part Schematics Acquired . | . . . . . . . Parts Damaged . | . . . . . . . Bothacking | -11 -10 -10 -10 -9 -8 -7 ------------ Run | Yrd Mat Min Exi Min Mat Fac Used RIF Installer . | . . . . . . . Robots Hacked . | . . . . . . . Non-combat . | . . . . . . . Combat . | . . . . . . . Robot Hacks Applied . | . . . . . . . Relay Couplers Released . | . . . . . . . Fabnet Peak Effective % . | . . . . . . . Robots Rewired . | . . . . . . . Allies Hacked . | . . . . . . . Hacks Repelled . | . . . . . . . Allies | -11 -10 -10 -10 -9 -8 -7 -------- Run | Yrd Mat Min Exi Min Mat Fac Total Allies . | . . . . . . . Largest Group . | . . . . . . . Highest-Rated Group . | . . . . . . . Highest-Rated Ally . | . . . . . . . Total Orders . | . . . . . . . Ally Attacks . | . . . . . . . Total Damage . | . . . . . . . Kills . | . . . . . . . Allies Corrupted . | . . . . . . . Allies Melted . | . . . . . . . Intel | -11 -10 -10 -10 -9 -8 -7 ------- Run | Yrd Mat Min Exi Min Mat Fac Robot Analysis Total 1 | . 1 . . . . . Derelict Logs Recovered 1 | . . 1 . . . . Drone Launches . | . . . . . . . Drone Recoveries . | . . . . . . . Exploration | -11 -10 -10 -10 -9 -8 -7 ------------- Run | Yrd Mat Min Exi Min Mat Fac Turns Passed 3958 | 46 71 610 808 353 774 1296 Spaces Moved 2605 | 30 60 464 494 180 444 933 Core 10 | 10 . . . . . . Treads 327 | . . . . . 94 233 Legs 802 | 20 60 407 . . 315 . Wheels . | . . . . . . . Hover 700 | . . . . . . 700 Flight 766 | . . 57 494 180 35 . Fastest Speed 48 | 50 120 117 117 197 125 48 Average Speed 135 | 116 120 119 161 197 152 110 Slowest Speed 277 | 150 120 120 197 197 277 170 Overloaded Moves . | . . . . . . . Propulsion Burnouts . | . . . . . . . Robots Hopped . | . . . . . . . Cave-ins Triggered . | . . . . . . . Exploration Rate (%) 44 | 3 19 86 89 42 36 33 Regions Visited 6 Branch Regions 3 Pre-discovered Areas . | . . . . . . . Known Exits Taken . | . . . . . . . Unknown Exits Taken 6 | 1 1 1 1 1 1 . Scrap Searched 1 | . . 1 . . . . Spaces Dug . | . . . . . . . Terrain Destroyed 23 | . . . . . 23 . Melee . | . . . . . . . Projectile 23 | . . . . . 23 . AOE . | . . . . . . . Terrain Rammed 1 | . . 1 . . . . Walls Destroyed . | . . . . . . . Machines Disabled . | . . . . . . . Actions | -11 -10 -10 -10 -9 -8 -7 --------- Run | Yrd Mat Min Exi Min Mat Fac Total 2943 | 41 59 498 512 179 529 1125 Wait 64 | . . 4 . . . 60 Move 2599 | 29 59 463 493 179 443 933 Hop . | . . . . . . . Pick Up 78 | 6 . 11 7 . 19 35 Fast Attach . | . . . . . . . Attach 43 | 6 . 2 2 . 14 19 Detach . | . . . . . . . Swap 22 | . . 2 1 . 4 15 Drop 37 | . . 2 9 . 8 18 Fire 82 | . . 13 . . 32 37 Melee 10 | . . . . . 4 6 Ram 3 | . . 1 . . . 2 Kick 4 | . . . . . 4 . Crush 1 | . . . . . 1 . Escape Stasis . | . . . . . . . Rewire . | . . . . . . . Trap . | . . . . . . . Miscellaneous . | . . . . . . . Route ------- -11/Scrapyard -10/Materials -10/Mines (discovered 3 exits: [*Mat x2] / *Exi) -10/Exiles -9/Mines -8/Materials -7/Factory (discovered 1 exit: [*Fac]) History --------- Turn | Location | Event 14 | -11/Scrapyard | Discovered new exit (range 16) 47 | -11/Scrapyard | Entered Materials 98 | -10/Materials | Discovered new exit (range 6) 118 | -10/Materials | Entered Mines 132 | -10/Mines | Discovered new exit (range 12) 159 | -10/Mines | Discovered new exit (range 5) 165 | -10/Mines | Learned Materials emergency access door positions 278 | -10/Mines | Found a damaged Exp. Sensor Array with a note attached 281 | -10/Mines | Found Prototype Device 282 | -10/Mines | Identified Exp. Sensor Array 303 | -10/Mines | Build established: Mutant 529 | -10/Mines | Found a hidden stash of uninstalled traps 721 | -10/Mines | Deemed a non-threat by the Exiles lab entrance 723 | -10/Mines | Discovered new exit (range 5) 728 | -10/Mines | Entered Exiles 770 | -10/Exiles | Met 8R-AWN 792 | -10/Exiles | Met EX-HEX 827 | -10/Exiles | Met EX-BIN 841 | -10/Exiles | Aligned with FarCom system 843 | -10/Exiles | Given EX-Vault access code 899 | -10/Exiles | Opened EX-Vault 906 | -10/Exiles | Found Prototype Processor 908 | -10/Exiles | Identified Modified TNC 924 | -10/Exiles | Found Prototype Ballistic Gun 962 | -10/Exiles | Warned to stay clear of 0b10 Research branches 990 | -10/Exiles | Identified XL Autogun Array 1000 | -10/Exiles | Found Gui. Plasma Cannon 1097 | -10/Exiles | Met EX-DEC 1175 | -10/Exiles | Visited The Gauntlet 1516 | -10/Exiles | Discovered new exit (range 11) 1536 | -10/Exiles | Stole two prototypes: Gui. Plasma Cannon, XL Autogun Array 1536 | -10/Exiles | Entered Mines 1839 | -9/Mines | Build established: Skirmisher 1862 | -9/Mines | Discovered new exit (range 15) 1889 | -9/Mines | Entered Materials 1889 | -8/Materials | Evolved 4 slots: Power x1, Utility x1, Weapon x2 2387 | -8/Materials | Garrison activated, responded to threat 2458 | -8/Materials | Lost 4 parts (1p1n2u) 2601 | -8/Materials | Discovered new exit (range 14) 2622 | -8/Materials | Garrison activated, responded to threat 2663 | -8/Materials | Entered Factory 2663 | -7/Factory | Evolved 2 slots: Propulsion x1, Utility x1 2664 | -7/Factory | Lost 4 parts (1p1n2w) 2665 | -7/Factory | FarCom data flow suspended 2954 | -7/Factory | Build established: Gunner 3281 | -7/Factory | Repaired Airjet 3394 | -7/Factory | Cargo convoy interrupted 3748 | -7/Factory | Lost 9 parts (1p3n1u4w) 3948 | -7/Factory | Discovered new exit (range 14) 3959 | -7/Factory | Core integrity fell below 50% 3959 | -7/Factory | Self-destructed Last Messages --------------- System corrupted by crushing effect (+1). Shock Rifle destroyed. Knocked back. Slug penetrates Wall. Knocked back. Penetrated by Slug. Knocked back. Slug penetrates Wall. Gravmag System severed. Imp. Terrain Scanner severed. Gauss Rifle severed. U-05 Engineer lays Concrete. Particle Gun severed. Mic. Nuclear Core severed. U-05 Engineer lays Concrete. Slammed into C-17 Slicer. Destabilizing: System interference. Transmission Jammer temporarily disabled. U-05 Engineer lays Concrete. Slammed into C-17 Slicer. Map ----- +----------------------------------------------------+ | ?????????????????????????????????????????????????? | | ?????????????????????????????????????????????????? | | ?????????????????????????????????????????????????? | | ?????????????????????????????????????????????????? | | ?????????????????????????????????????????????????? | | ?????????????????????????????????????????????????? | | ?????????????????????????????????????????????????? | | ?????????????????????????????????????????????????? | | ?????????????????????????????????????????????????? | | ?????????????????????????????????????????????????? | | ?????????????????????????????????????????????????? | | ?????????????????????????????????????????????????? | | ?????????????????????????????????????????????????? | | ?????????????????????????????????????????????????? | | ?????????????????????????????????????????????????? | | ??????????????????????????????#??????????????????? | | ?????????????????? ???????????????? ?????????????? | | ???????????????????????? ?#???#??????????????????? | | ??????????????????????????#??????????????????????? | | ?????????# ??? #???????"?#??##???????????????????? | | ?????????# ?? ???????????#??##???????????????? | | ????????## ###;###########?#?????????????????? | | ???????? #??#?????#?#????????? | | ???????# ###???????#?????????? | | ???????# H c[ ##?#?#??#???????????? | | ???????# c@=[ ###########?????????? | | ???????# %c! # #?##??????? | | ??????????##+######## % % ; #?????????? | | ????????????? ?????## #u # ##?#??????? | | ????????????? ????#####k # #?????????? | | ???????????"?? ????#?### + #?????????? | | ?????????????"? ?? ????# # #?????????? | | ??????????????? ?? ???## # ##????????? | | ??????????????? ????##?# + #???#?????? | | ?????????????? ?? ??####+#+#############??#??????? | | ???????????? ???? ?## #?#????###?????? | | ??????????????? ## !!! ##?#?##??#?????? | | ??????????"???? ?? ?##% !! ##??????#??????? | | ?????????"?? ? ### !! #??#????#??????? | | ????????? ?????? ???## #?#?????###???## | | ?????????????###?##??# ! #??#? ? ? ? | | ???????????#?????##?##% "" ##?## ?"" "?"? | | ???????????#??#?#?####= """##??# """ """ | | ??????????????#?###### """"" F"##??# """ """ | | ?????????##?###???##?# """"" """##?## | | ????????#?###????#???# """ "" ##### """ """ | | ?????????####???###### ##### """ """ | | ??????????????#??????#+################ """ """ | | ?????????##?##?#????## ##???####?##?### | | ???????????????#?##### ##???####?##??## | +----------------------------------------------------+ Best States ------------- Heat Dissipation 34 Energy Generation 24 Energy Capacity 430 Matter Stores 300 Matter Capacity 300 Sight Range 16 Robot Scan Range 20 Terrain Scan Range 16 Terrain Scan Density 110 Jamming Range 12 Weapon Cycling 15 Evasion (%) 55 Targeting Accuracy 16 Target Analysis 5 Recoil Reduction 2 Item Schematics ----------------- None Robot Schematics ------------------ None Fabricated ------------ Nothing Alien Tech Used ----------------- None Achievements -------------- Oops Challenges ------------ None Game ------ Seed ChromaticNullMapper Manual? 0 Play Time 00:32:28 Cumulative 6.7 hours Start 2024.03.14 @ 22:56:26 End 2024.03.15 @ 15:37:53 Sessions 3 Manual Loads 0 Difficulty Rogue Special Mode None Game No. 13 Rogue 11 Adventurer 2 Explorer 0 Win Type - Total 0 Types 0/0/0/0/0/0/0/0/0 Lore% 10 Gallery% 19 Achievement% 11 Wizard Run 0 Options --------- Layout 1 ASCII 0 Keyboard 0 Movement Arrows Keybinds 0 Fullscreen 1 Font 24/Smallcaps Map View 50x35 Zoom Use 0% Tactical HUD 0 Map Filters NONE Filters NONE Steam 1 RUN: e12d7864-850b-4e4b-967c-cf0b0f31ce37